[Event "44th BAN-ch OMICON 2018"]
[Site "Dhaka"]
[Date "2018.11.25"]
[Round "2"]
[White "Reefat, Bin-Sattar"]
[Black "Hossain, Showkat Pollab"]
[Result "1/2-1/2"]
[ECO "B30"]
[WhiteElo "2437"]
[BlackElo "2119"]
[Annotator "NA RC"]
[PlyCount "32"]
[EventDate "2018.11.24"]
[EventType "swiss"]
[EventCountry "BAN"]
[SourceTitle "playchess.com"]
[Source "ChessBase"]
[SourceQuality "1"]
[TimeControl "40/5400+30:1800+30"]

1. e4 {[%emt 0:02:22]} c5 {[%emt 0:10:33]} 2. b3 {[%emt 0:00:43]} Nf6 {[%emt 0:01:25]} 3. e5 {[%emt 0:00:06]} Nd5 {[%emt 0:00:04]} 4. Nf3 {[%emt 0:00:57]} Nc6 {[%emt 0:02:33]} 5. Bb2 {[%emt 0:00:11]} d6 {[%emt 0:05:01]} 6. Bb5 {[%emt 0:01:16]} Bg4 {[%emt 0:03:58]} 7. h3 {[%emt 0:09:49]} Bh5 {[%emt 0:00:53]} 8. Nc3 {[%emt 0:07:30]} Nxc3 {[%emt 0:01:32]} 9. Bxc3 {[%emt 0:21:01]} (9. Bxc6+ $5 bxc6 10. Bxc3 $11 (10. dxc3 e6 $11)) 9... Qb6 $11 {[%emt 0:05:37]} 10. Qe2 {[%emt 0:14:15]} a6 {[%emt 0:03:50]} 11. Bc4 {[%emt 0:05:23]} O-O-O {[%emt 0:03:08]} 12. g4 {[%emt 0:14:46]} Bg6 {[%emt 0:00:53]} 13. Ng5 {[%emt 0:02:56]} d5 {[%emt 0:09:12]} 14. Bd3 {[%emt 0:00:03]} h6 {[%emt 0:00:20]} 15. Bxg6 {[%emt 0:00:29]} hxg5 {[%emt 0:00:15]} 16. Bxf7 {[%emt 0:00:28]} d4 {[%emt 0:00:49]} 1/2-1/2

[Event "44th BAN-ch OMICON 2018"]
[Site "Dhaka"]
[Date "2018.11.25"]
[Round "2"]
[White "Mohammad Minhaz Uddin"]
[Black "Mohammad Fahad, Rahman"]
[Result "1/2-1/2"]
[ECO "B92"]
[WhiteElo "2290"]
[BlackElo "2381"]
[Annotator "NA"]
[PlyCount "56"]
[EventDate "2018.11.24"]
[EventType "swiss"]
[EventCountry "BAN"]
[SourceTitle "playchess.com"]
[Source "ChessBase"]
[SourceQuality "1"]
[TimeControl "40/5400+30:1800+30"]

1. e4 {[%emt 0:00:00]} c5 {[%emt 0:00:00]} 2. Nf3 {[%emt 0:00:00]} d6 {[%emt 0:00:00]} 3. d4 {[%emt 0:00:00]} cxd4 {[%emt 0:00:00]} 4. Nxd4 {[%emt 0:00:00]} Nf6 {[%emt 0:00:00]} 5. Nc3 {[%emt 0:00:00]} a6 {[%emt 0:00:00]} 6. Be2 {[%emt 0:00:01]} e5 {[%emt 0:00:06]} 7. Nb3 {[%emt 0:00:09]} Be6 {[%emt 0:00:15]} 8. O-O {[%emt 0:00:20]} Be7 {[%emt 0:00:43]} 9. Kh1 {[%emt 0:00:24]} b5 {[%emt 0:00:28] B92: Sicilian Najdorf: 6 Be2} (9... Nbd7 10. f4 Rc8 11. a4 O-O 12. Be3 Re8 13. f5 Bc4 14. a5 h6 15. Ra4 Bxe2 16. Qxe2 Rc6 17. Rd1 Qc7 18. Nc1 Rc8 19. Nd3 Rc4 20. Nb4 Qd8 21. Bg1 Bf8 {½-½ (21) Panarin,M (2521)-Ivanisevic,I (2630) Sarajevo 2010}) 10. f4 {[%emt 0:04:41]} Nbd7 {[%emt 0:01:13]} 11. a4 {[%emt 0:10:11]} b4 {[%emt 0:07:32]} 12. Nd5 {[%emt 0:00:03]} Bxd5 {[%emt 0:07:01]} 13. exd5 {[%emt 0:00:11]} Nb6 $146 {[%emt 0:01:04]} ({Predecessor:} 13... Qc7 14. a5 O-O 15. Be3 Qb7 16. fxe5 Nxe5 17. Bg5 Nxd5 18. Bxe7 {0-1 (53) Savova,S (2213)-Nikolova,A (2167) Sunny Beach 2006}) 14. a5 {[%emt 0:00:31]} Nbxd5 {[%emt 0:01:56]} 15. Bf3 {[%emt 0:00:07]} e4 {[%emt 0:00:07]} 16. Bxe4 {[%emt 0:00:11]} Nxe4 {[%emt 0:00:07]} 17. Qxd5 {[%emt 0:00:04]} Nf6 {[%emt 0:00:11]} 18. Qc6+ {[%emt 0:03:20]} Nd7 {[%emt 0:02:10]} 19. Ra4 {[%emt 0:07:35]} O-O {[%emt 0:07:52]} 20. Rxb4 {[%emt 0:01:18]} d5 {[%emt 0:03:34]} 21. Rb7 {[%emt 0:02:34]} Nf6 {[%emt 1:06:11]} 22. Be3 {[%emt 0:03:23]} Re8 {[%emt 0:02:32]} 23. Bd4 {[%emt 0:02:27]} Bd6 $16 {[%emt 0:01:13]} 24. Rb6 {[%emt 0:07:09]} Ne4 {[%emt 0:04:51]} 25. g3 {[%emt 0:16:35]} Bc7 {[%emt 0:04:32]} 26. Rxa6 {[%emt 0:04:39]} Nxg3+ {[%emt 0:00:59]} 27. hxg3 {[%emt 0:00:33]} Qc8 {[%emt 0:00:05]} 28. Rxa8 {[%emt 0:22:34]} Qh3+ {[%emt 0:00:10]} 1/2-1/2

[Event "44th BAN-ch OMICON 2018"]
[Site "Dhaka"]
[Date "2018.11.25"]
[Round "2"]
[White "Islam, Kh. Aminul"]
[Black "S M Sharon"]
[Result "1/2-1/2"]
[ECO "A21"]
[WhiteElo "2253"]
[BlackElo "2123"]
[Annotator "NA"]
[PlyCount "47"]
[EventDate "2018.11.24"]
[EventType "swiss"]
[EventCountry "BAN"]
[SourceTitle "playchess.com"]
[Source "ChessBase"]
[SourceQuality "1"]
[TimeControl "40/5400+30:1800+30"]

1. c4 {[%emt 0:00:00]} d6 {[%emt 0:17:33]} 2. Nc3 {[%emt 0:00:01]} e5 {[%emt 0:01:04]} 3. g3 {[%emt 0:00:42]} g6 {[%emt 0:06:20]} 4. d3 {[%emt 0:06:43]} Bg7 {[%emt 0:01:05]} 5. h4 {[%emt 0:00:41]} Ne7 {[%emt 0:09:11]} 6. e4 {[%emt 0:05:55]} h5 {[%emt 0:01:51]} 7. Bh3 {[%emt 0:00:16]} Nd7 {[%emt 0:02:19]} 8. Nf3 {[%emt 0:01:37]} c6 {[%emt 0:03:43]} 9. Be3 {[%emt 0:01:57]} O-O {[%emt 0:09:42]} 10. Kf1 {[%emt 0:17:17]} Nf6 {[%emt 0:04:28]} 11. Bxc8 {[%emt 0:00:50]} Nxc8 {[%emt 0:05:33]} 12. Bg5 {[%emt 0:03:32]} Qb6 {[%emt 0:01:09]} 13. Qe2 {[%emt 0:01:08]} Ng4 {[%emt 0:01:57]} 14. Nh2 {[%emt 0:01:07]} f6 {[%emt 0:02:06]} 15. Bc1 {[%emt 0:02:59]} f5 {[%emt 0:04:47]} 16. f3 {[%emt 0:12:39]} fxe4 {[%emt 0:03:35]} 17. dxe4 {[%emt 0:01:05]} Ne7 {[%emt 0:01:59]} 18. Kg2 {[%emt 0:00:50]} Nxh2 {[%emt 0:04:19]} 19. Kxh2 {[%emt 0:01:35]} d5 {[%emt 0:01:23]} 20. Kg2 {[%emt 0:06:38]} Qa6 {[%emt 0:06:50]} 21. cxd5 {[%emt 0:17:40]} Qxe2+ {[%emt 0:00:36]} 22. Nxe2 {[%emt 0:00:11]} cxd5 {[%emt 0:00:11]} 23. exd5 {[%emt 0:04:44]} Nxd5 {[%emt 0:00:16]} 24. Rd1 {[%emt 0:02:12]} 1/2-1/2

[Event "44th BAN-ch OMICON 2018"]
[Site "Dhaka"]
[Date "2018.11.25"]
[Round "2"]
[White "Abu Sufian, Shakil"]
[Black "Swadhin, Sarkar"]
[Result "1-0"]
[ECO "B06"]
[WhiteElo "2230"]
[BlackElo "1875"]
[Annotator "NA"]
[PlyCount "61"]
[EventDate "2018.11.24"]
[EventType "swiss"]
[EventCountry "BAN"]
[SourceTitle "playchess.com"]
[Source "ChessBase"]
[SourceQuality "1"]
[TimeControl "40/5400+30:1800+30"]

1. e4 {[%emt 0:00:00]} g6 {[%emt 0:00:04]} 2. d4 {[%emt 0:00:00]} Bg7 {[%emt 0:00:07]} 3. Nc3 {[%emt 0:00:00]} d5 {[%emt 0:00:39]} 4. exd5 {[%emt 0:03:54]} Nf6 $14 {[%emt 0:00:19]} 5. Bb5+ {[%emt 0:13:43]} Nbd7 {[%emt 0:03:26]} 6. Nf3 {[%emt 0:05:20]} O-O {[%emt 0:00:36]} 7. O-O {[%emt 0:01:22]} Nb6 {[%emt 0:01:02]} 8. Re1 {[%emt 0:02:23]} a6 {[%emt 0:05:03]} 9. Bf1 {[%emt 0:01:28]} Nbxd5 {[%emt 0:01:07]} 10. Nxd5 {[%emt 0:00:19]} Nxd5 {[%emt 0:00:04]} 11. c4 {[%emt 0:00:42]} Nf6 {[%emt 0:00:39]} 12. h3 {[%emt 0:00:52]} Bf5 {[%emt 0:07:13]} 13. Bf4 {[%emt 0:01:38]} Re8 {[%emt 0:12:16]} 14. Be5 {[%emt 0:03:39]} Be4 {[%emt 0:03:39]} 15. Ng5 {[%emt 0:04:51]} Bc6 {[%emt 0:00:52]} 16. d5 {[%emt 0:02:17]} Bd7 {[%emt 0:00:17]} 17. Qb3 {[%emt 0:01:51]} h6 {[%emt 0:02:47]} 18. Nf3 {[%emt 0:00:24]} Bc8 {[%emt 0:05:54]} 19. Rad1 {[%emt 0:01:35]} Nd7 {[%emt 0:02:34]} 20. Bxg7 {[%emt 0:00:28]} Kxg7 {[%emt 0:00:10]} 21. c5 {[%emt 0:08:08]} Nf8 {[%emt 0:04:46]} 22. Qc3+ {[%emt 0:06:30]} Kg8 {[%emt 0:02:46]} 23. b4 {[%emt 0:02:06]} Qd7 {[%emt 0:01:44]} 24. Ne5 {[%emt 0:03:35]} Qf5 {[%emt 0:01:42]} 25. Ng4 {[%emt 0:01:55]} Qh5 {[%emt 0:02:11]} 26. Rxe7 {[%emt 0:08:18]} Bxg4 {[%emt 0:01:20]} 27. hxg4 {[%emt 0:00:06]} Qxg4 {[%emt 0:07:00]} 28. Rde1 {[%emt 0:00:20]} Rxe7 {[%emt 0:01:13]} 29. Rxe7 {[%emt 0:00:02]} Qf5 {[%emt 0:02:42]} 30. Rxc7 {[%emt 0:06:00]} Qxd5 {[%emt 0:00:28]} 31. Qc4 {[%emt 0:00:28]} 1-0

[Event "44th BAN-ch OMICON 2018"]
[Site "Dhaka"]
[Date "2018.11.25"]
[Round "2"]
[White "Mehdi Hasan Parag"]
[Black "Rahman, Ziaur"]
[Result "1-0"]
[ECO "B12"]
[WhiteElo "2218"]
[BlackElo "2468"]
[Annotator "RC"]
[PlyCount "139"]
[EventDate "2018.11.24"]
[EventType "swiss"]
[EventCountry "BAN"]
[SourceTitle "playchess.com"]
[Source "ChessBase"]
[SourceQuality "1"]
[TimeControl "40/5400+30:1800+30"]

1. e4 {[%emt 0:00:00]} c6 {[%emt 0:00:46]} 2. d4 {[%emt 0:00:13]} d5 {[%emt 0:00:05]} 3. e5 {[%emt 0:00:14]} c5 {[%emt 0:00:22]} 4. dxc5 {[%emt 0:00:03]} e6 {[%emt 0:00:08]} 5. Nf3 {[%emt 0:00:44]} Bxc5 {[%emt 0:00:13]} 6. Bd3 {[%emt 0:00:20]} Ne7 {[%emt 0:00:12]} 7. O-O {[%emt 0:00:23]} Ng6 {[%emt 0:00:09]} 8. a3 {[%emt 0:01:17]} Nd7 {[%emt 0:01:09]} 9. Re1 {[%emt 0:00:40]} O-O {[%emt 0:06:24]} 10. c4 {[%emt 0:03:51]} dxc4 {[%emt 0:01:34]} 11. Bxc4 {[%emt 0:00:54]} Ndxe5 {[%emt 0:04:51]} 12. Qe2 {[%emt 0:02:27]} Nxc4 {[%emt 0:04:51]} 13. Qxc4 {[%emt 0:00:04]} Qb6 {[%emt 0:02:04]} 14. Qe2 {[%emt 0:00:35]} Bd7 {[%emt 0:00:43]} 15. Nc3 {[%emt 0:01:42]} Rac8 {[%emt 0:02:16]} 16. h4 {[%emt 0:01:46]} f6 {[%emt 0:15:39]} 17. h5 {[%emt 0:04:34]} Ne7 {[%emt 0:00:27]} 18. Rd1 {[%emt 0:10:03]} Be8 {[%emt 0:08:04]} 19. h6 {[%emt 0:01:05]} Nf5 {[%emt 0:02:12]} 20. hxg7 {[%emt 0:01:31]} Kxg7 {[%emt 0:00:51]} 21. Ne4 {[%emt 0:02:28]} Ba4 {[%emt 0:07:44]} 22. b3 {[%emt 0:03:26]} Bb5 {[%emt 0:04:29]} 23. Qb2 {[%emt 0:01:54]} Bc6 {[%emt 0:01:25]} 24. Nxc5 {[%emt 0:06:17]} Qxc5 {[%emt 0:00:16]} 25. Bd2 {[%emt 0:08:27]} Rfe8 {[%emt 0:03:28]} 26. Bb4 {[%emt 0:04:21]} Qb5 {[%emt 0:01:13]} 27. Ne1 {[%emt 0:07:44]} e5 {[%emt 0:03:30]} 28. Bc3 {[%emt 0:04:35]} Bd5 {[%emt 0:01:25]} 29. Rd3 {[%emt 0:02:54]} Be4 {[%emt 0:03:49]} 30. Rh3 {[%emt 0:02:41]} Kh8 {[%emt 0:02:24]} 31. a4 {[%emt 0:01:00]} Qc6 {[%emt 0:02:25]} 32. Rc1 {[%emt 0:02:14]} Nd4 {[%emt 0:03:17]} 33. Rg3 {[%emt 0:04:22]} Bg6 {[%emt 0:01:15]} 34. Rd1 {[%emt 0:02:17]} Nf5 {[%emt 0:01:38]} 35. Rh3 {[%emt 0:01:33]} Ng7 {[%emt 0:01:33]} 36. Rc1 {[%emt 0:07:11]} Qd7 {[%emt 0:02:00]} 37. f4 {[%emt 0:03:03]} Kg8 {[%emt 0:04:41]} 38. fxe5 {[%emt 0:01:12]} fxe5 {[%emt 0:00:06]} 39. Nf3 {[%emt 0:01:05]} Qc7 {[%emt 0:01:52]} 40. Kh1 {[%emt 0:00:00]} e4 {[%emt 0:00:00]} 41. Nh4 {[%emt 0:03:54]} Qf4 {[%emt 0:10:33]} 42. Nxg6 {[%emt 0:02:38]} hxg6 {[%emt 0:00:17]} 43. Kg1 {[%emt 0:04:36]} Nh5 {[%emt 0:08:29]} 44. Rf1 {[%emt 0:01:07]} Qg5 {[%emt 0:00:19]} 45. b4 {[%emt 0:01:44]} Rcd8 {[%emt 0:02:04]} 46. Qa2+ {[%emt 0:04:24]} Qd5 {[%emt 0:00:10]} 47. Qe2 {[%emt 0:01:45]} Rf8 {[%emt 0:01:29]} 48. Re1 {[%emt 0:01:32]} Rf4 {[%emt 0:01:32]} 49. Qe3 {[%emt 0:03:16]} Rdf8 {[%emt 0:03:37]} 50. Qxa7 {[%emt 0:01:44]} Rg4 {[%emt 0:01:56]} 51. Qe3 {[%emt 0:03:51]} Rf7 {[%emt 0:04:19]} 52. Qe2 {[%emt 0:02:19]} Qe6 {[%emt 0:02:23]} 53. Rd1 {[%emt 0:00:46]} Kh7 {[%emt 0:03:11]} 54. a5 {[%emt 0:03:23]} Rd7 {[%emt 0:01:32]} 55. Rf1 {[%emt 0:00:23]} Kg8 {[%emt 0:00:40]} 56. Ba1 {[%emt 0:02:19]} Rf7 {[%emt 0:01:20]} 57. Rc1 {[%emt 0:02:15]} Ng7 {[%emt 0:01:39]} 58. Qc2 {[%emt 0:02:45]} Rgf4 {[%emt 0:01:00]} 59. b5 {[%emt 0:00:36]} Rf8 {[%emt 0:00:30]} 60. Qc3 {[%emt 0:00:24]} R4f7 {[%emt 0:00:22]} 61. Qe3 {[%emt 0:00:34]} Nh5 {[%emt 0:00:42]} 62. Qg5 {[%emt 0:00:57]} Rh7 {[%emt 0:00:10]} 63. a6 {[%emt 0:01:09]} Qb6+ {[%emt 0:00:41]} 64. Kh1 {[%emt 0:01:03]} Rf5 {[%emt 0:00:31]} 65. Qd2 {[%emt 0:01:10]} Ng3+ {[%emt 0:00:31]} 66. Kh2 {[%emt 0:00:22]} Rxh3+ {[%emt 0:00:32]} 67. Kxh3 {[%emt 0:00:03]} Qe6 {[%emt 0:00:55]} 68. Kxg3 {[%emt 0:00:18]} e3 {[%emt 0:00:05]} 69. Qd8+ {[%emt 0:00:26]} Rf8 {[%emt 0:00:01]} 70. Qd4 {[%emt 0:00:29]} 1-0

[Event "44th BAN-ch OMICON 2018"]
[Site "Dhaka"]
[Date "2018.11.25"]
[Round "2"]
[White "Anata, Choudhury"]
[Black "Ikramul, Haq Siam"]
[Result "1-0"]
[ECO "C18"]
[WhiteElo "2141"]
[BlackElo "2100"]
[Annotator "NA"]
[PlyCount "96"]
[EventDate "2018.11.24"]
[EventType "swiss"]
[EventCountry "BAN"]
[SourceTitle "playchess.com"]
[Source "ChessBase"]
[SourceQuality "1"]
[TimeControl "40/5400+30:1800+30"]

1. e4 {[%emt 0:08:14]} e6 {[%emt 0:05:23]} 2. d4 {[%emt 0:00:13]} d5 {[%emt 0:00:01]} 3. Nc3 {[%emt 0:00:09]} Bb4 {[%emt 0:00:04]} 4. e5 {[%emt 0:00:08]} Ne7 {[%emt 0:00:11]} 5. a3 {[%emt 0:00:11]} Bxc3+ {[%emt 0:00:04]} 6. bxc3 {[%emt 0:00:07]} c5 {[%emt 0:00:02]} 7. Qg4 {[%emt 0:00:16]} cxd4 {[%emt 0:00:04]} 8. Bd3 {[%emt 0:01:00]} Qc7 {[%emt 0:04:38]} 9. Ne2 {[%emt 0:00:17]} dxc3 {[%emt 0:00:04]} 10. Qxg7 {[%emt 0:00:17]} Rg8 {[%emt 0:00:12]} 11. Qxh7 {[%emt 0:00:22]} Nbc6 {[%emt 0:20:13]} 12. Bf4 {[%emt 0:00:34]} Bd7 {[%emt 0:06:33]} 13. Bg3 {[%emt 0:00:31]} d4 {[%emt 0:03:43]} 14. O-O {[%emt 0:00:55]} O-O-O {[%emt 0:03:54]} 15. Qh4 {[%emt 0:09:37]} Kb8 {[%emt 0:08:43]} 16. Nxd4 {[%emt 0:11:52]} Nxd4 {[%emt 0:14:28]} 17. Qxe7 {[%emt 0:00:37]} Ba4 {[%emt 0:04:55]} 18. Qxc7+ {[%emt 0:15:13]} Kxc7 {[%emt 0:00:01]} 19. Rac1 {[%emt 0:00:12]} Rd5 {[%emt 0:13:19]} 20. Rfe1 {[%emt 0:06:03]} Bc6 {[%emt 0:02:28]} 21. Rb1 {[%emt 0:19:39]} a5 {[%emt 0:01:59]} 22. Re4 {[%emt 0:05:56]} Ba4 {[%emt 0:03:38]} 23. Rc1 {[%emt 0:09:06]} b5 {[%emt 0:00:14]} 24. f3 {[%emt 0:07:07]} b4 {[%emt 0:02:45]} 25. axb4 {[%emt 0:00:21]} axb4 {[%emt 0:00:02]} 26. Rf4 {[%emt 0:00:55]} Rg7 {[%emt 0:02:00]} 27. Kf1 {[%emt 0:01:16]} Nc6 {[%emt 0:02:58]} 28. Be4 {[%emt 0:02:07]} Rd2 {[%emt 0:00:45]} 29. Bxc6 {[%emt 0:00:37]} Kxc6 {[%emt 0:00:35]} 30. Rxb4 {[%emt 0:00:13]} Rxc2 {[%emt 0:00:30]} 31. Rxc2 {[%emt 0:00:19]} Bxc2 {[%emt 0:00:01]} 32. Rc4+ {[%emt 0:00:08]} Kd7 {[%emt 0:01:02]} 33. Rxc3 {[%emt 0:00:07]} Bf5 {[%emt 0:00:08]} 34. Kf2 {[%emt 0:00:24]} Rh7 {[%emt 0:00:14]} 35. Bf4 {[%emt 0:00:14]} Rh4 {[%emt 0:00:01]} 36. g4 {[%emt 0:00:16]} Bg6 {[%emt 0:00:37]} 37. Kg3 {[%emt 0:00:11]} Rh8 {[%emt 0:00:01]} 38. Ra3 {[%emt 0:00:27]} Rc8 {[%emt 0:00:09]} 39. h4 {[%emt 0:00:10]} Rc5 {[%emt 0:00:26]} 40. Ra7+ {[%emt 0:00:00]} Rc7 {[%emt 0:00:00]} 41. Ra3 {[%emt 0:00:24]} Rc5 {[%emt 0:01:15]} 42. Ra7+ {[%emt 0:02:28]} Rc7 {[%emt 0:00:01]} 43. Rxc7+ {[%emt 0:04:23]} Kxc7 {[%emt 0:01:24]} 44. h5 {[%emt 0:00:21]} Bd3 {[%emt 0:00:48]} 45. Bc1 {[%emt 0:00:27]} Kc6 {[%emt 0:00:11]} 46. Kf4 {[%emt 0:00:19]} Kd5 {[%emt 0:00:15]} 47. Bb2 {[%emt 0:00:08]} Be2 {[%emt 0:00:47]} 48. h6 {[%emt 0:00:16]} Bd3 {[%emt 0:00:04] Ke4+ [%clk 0:00:00]} 1-0

[Event "44th BAN-ch OMICON 2018"]
[Site "Dhaka"]
[Date "2018.11.25"]
[Round "2"]
[White "Subrota, Biswas"]
[Black "Ghosh, Chanchal Kumer"]
[Result "1-0"]
[ECO "B06"]
[WhiteElo "2126"]
[BlackElo "2069"]
[Annotator "NA"]
[PlyCount "73"]
[EventDate "2018.11.24"]
[EventType "swiss"]
[EventCountry "BAN"]
[SourceTitle "playchess.com"]
[Source "ChessBase"]
[SourceQuality "1"]
[TimeControl "40/5400+30:1800+30"]

1. e4 {[%emt 1:30:30]} d6 {[%emt 1:30:30]} 2. d4 {[%emt 0:00:30]} g6 {[%emt 0:00:30]} 3. f4 {[%emt 0:00:30]} Bg7 {[%emt 0:00:30]} 4. Nc3 {[%emt 0:00:30]} Nd7 {[%emt 0:00:30]} 5. Nf3 {[%emt 0:00:30]} c6 {[%emt 0:00:30]} 6. a4 {[%emt 0:00:30]} Ngf6 {[%emt 0:00:30]} 7. e5 {[%emt 0:00:30]} Ng4 {[%emt 0:00:30]} 8. h3 {[%emt 0:00:30]} Nh6 {[%emt 0:00:30]} 9. Ne4 {[%emt 0:00:30]} d5 {[%emt 0:00:30]} 10. Ned2 {[%emt 0:00:30]} Nf5 {[%emt 0:00:30]} 11. Bd3 {[%emt 0:00:30]} Ng3 {[%emt 0:00:30]} 12. Rg1 {[%emt 0:00:30]} f5 {[%emt 0:00:30]} 13. Nf1 {[%emt 0:00:30]} Ne4 {[%emt 0:00:30]} 14. g4 {[%emt 0:00:30]} e6 {[%emt 0:00:30]} 15. Ne3 {[%emt 0:00:30]} Bh6 {[%emt 0:00:30]} 16. g5 {[%emt 0:00:30]} Bf8 {[%emt 0:00:30]} 17. h4 {[%emt 0:00:30]} c5 {[%emt 0:00:30]} 18. c3 {[%emt 0:00:30]} Qb6 {[%emt 0:00:30]} 19. h5 {[%emt 0:00:30]} a5 {[%emt 0:00:30]} 20. Nc2 {[%emt 0:00:30]} Be7 {[%emt 0:00:30]} 21. Na3 {[%emt 0:00:30]} cxd4 {[%emt 0:00:30]} 22. Nxd4 {[%emt 0:00:30]} Ndc5 {[%emt 0:00:30]} 23. Be2 {[%emt 0:00:30]} Bd7 {[%emt 0:00:30]} 24. Nab5 {[%emt 0:00:30]} Na6 {[%emt 0:00:30]} 25. Be3 {[%emt 0:00:30]} Bc5 {[%emt 0:00:30]} 26. Kf1 {[%emt 0:00:30]} Kf7 {[%emt 0:00:30]} 27. Rc1 {[%emt 0:00:30]} Rac8 {[%emt 0:00:30]} 28. Bd3 {[%emt 0:00:30]} Nc7 {[%emt 0:00:30]} 29. b4 {[%emt 0:00:30]} Nxb5 {[%emt 0:00:30]} 30. bxc5 {[%emt 0:00:30]} Nbxc3 {[%emt 0:00:30]} 31. cxb6 {[%emt 0:00:30]} Nxd1 {[%emt 0:00:30]} 32. Rxd1 {[%emt 0:00:30]} Bxa4 {[%emt 0:00:30]} 33. Ra1 {[%emt 0:00:30]} Rc3 {[%emt 0:00:30]} 34. Ke2 {[%emt 0:00:30]} Nc5 {[%emt 0:00:30]} 35. Rgc1 {[%emt 0:00:30]} Rxc1 {[%emt 0:00:30]} 36. Rxc1 {[%emt 0:00:30]} Rc8 {[%emt 0:00:30]} 37. Bb5 {[%emt 0:00:30]} 1-0